[Event "Late-Titled-Tuesday-Blitz-September-05-2023"]
[Site "Chess.com"]
[Date "2023.09.05"]
[Round "10"]
[White "micke12a"]
[Black "whiteglovethief"]
[Result "1-0"]
[WhiteElo "2362"]
[BlackElo "2499"]
[TimeControl "180+1"]
[EndTime "15:52:20 PDT"]
[Termination "micke12a won by resignation"]

1. d4 {[%clk 0:03:00.9]} 1... d5 {[%clk 0:02:42.6]} 2. Nc3 {[%clk 0:03:00.8]}
2... e6 {[%clk 0:02:41.8]} 3. e4 {[%clk 0:02:52.7]} 3... Bb4 {[%clk 0:02:40]} 4.
Ne2 {[%clk 0:02:52.3]} 4... dxe4 {[%clk 0:02:39.1]} 5. a3 {[%clk 0:02:52.1]}
5... Be7 {[%clk 0:02:38.9]} 6. Nxe4 {[%clk 0:02:52.2]} 6... Nf6 {[%clk
0:02:39.8]} 7. Nxf6+ {[%clk 0:02:51.3]} 7... Bxf6 {[%clk 0:02:37.8]} 8. Be3
{[%clk 0:02:52.2]} 8... O-O {[%clk 0:02:36.7]} 9. Qd2 {[%clk 0:02:51.5]} 9... e5
{[%clk 0:02:33.1]} 10. dxe5 {[%clk 0:02:48.1]} 10... Qxd2+ {[%clk 0:02:30.4]}
11. Bxd2 {[%clk 0:02:47.6]} 11... Bxe5 {[%clk 0:02:22]} 12. O-O-O {[%clk
0:02:47.1]} 12... Nc6 {[%clk 0:02:20.5]} 13. Bf4 {[%clk 0:02:46.9]} 13... a6
{[%clk 0:02:14.5]} 14. Bxe5 {[%clk 0:02:46.8]} 14... Nxe5 {[%clk 0:02:14.8]} 15.
h3 {[%clk 0:02:43.9]} 15... Bf5 {[%clk 0:02:13]} 16. Ng3 {[%clk 0:02:39.9]}
16... Bg6 {[%clk 0:02:11.8]} 17. f4 {[%clk 0:02:39.6]} 17... Nc6 {[%clk
0:01:54.3]} 18. f5 {[%clk 0:02:39]} 18... Rae8 {[%clk 0:01:54.9]} 19. fxg6
{[%clk 0:02:36.3]} 19... fxg6 {[%clk 0:01:55.8]} 20. Bc4+ {[%clk 0:02:36.2]}
20... Kh8 {[%clk 0:01:56.4]} 21. Rhf1 {[%clk 0:02:28.4]} 21... Ne5 {[%clk
0:01:54.9]} 22. Be2 {[%clk 0:02:22.1]} 22... h5 {[%clk 0:01:49.8]} 23. h4 {[%clk
0:02:16.8]} 23... Rf6 {[%clk 0:01:42]} 24. Ne4 {[%clk 0:02:13]} 24... Rxf1
{[%clk 0:01:38.8]} 25. Rxf1 {[%clk 0:02:11.1]} 25... Ng4 {[%clk 0:01:39.7]} 26.
Bxg4 {[%clk 0:02:09.7]} 26... Rxe4 {[%clk 0:01:40]} 27. Bf3 {[%clk 0:02:08]}
27... Rf4 {[%clk 0:01:37.5]} 28. Re1 {[%clk 0:01:58.6]} 28... b6 {[%clk
0:01:33.3]} 29. Re4 {[%clk 0:01:58]} 29... Rf7 {[%clk 0:01:29.7]} 30. Re6 {[%clk
0:01:57.3]} 30... Kh7 {[%clk 0:01:25.6]} 31. Kd2 {[%clk 0:01:50.8]} 31... Rf4
{[%clk 0:01:23.1]} 32. Ke3 {[%clk 0:01:48.6]} 32... Rxh4 {[%clk 0:01:22.7]} 33.
Rc6 {[%clk 0:01:41.4]} 33... g5 {[%clk 0:01:18.1]} 34. Rxc7 {[%clk 0:01:39.2]}
34... g4 {[%clk 0:01:18.5]} 35. Be4+ {[%clk 0:01:39.3]} 35... Kh6 {[%clk
0:01:17.5]} 36. Rc6+ {[%clk 0:01:38.9]} 1-0

[Event "Late-Titled-Tuesday-Blitz-September-05-2023"]
[Site "Chess.com"]
[Date "2023.09.05"]
[Round "10"]
[White "FairChess_on_YouTube"]
[Black "Goryachkina"]
[Result "1-0"]
[WhiteElo "3021"]
[BlackElo "2681"]
[TimeControl "180+1"]
[EndTime "15:52:58 PDT"]
[Termination "FairChess_on_YouTube won on time"]

1. e4 {[%clk 0:02:44.3]} 1... e6 {[%clk 0:02:57.3]} 2. d4 {[%clk 0:02:43.4]}
2... d5 {[%clk 0:02:57.5]} 3. Nc3 {[%clk 0:02:42.7]} 3... Bb4 {[%clk 0:02:56.5]}
4. Qd3 {[%clk 0:02:40]} 4... dxe4 {[%clk 0:02:38.6]} 5. Qxe4 {[%clk 0:02:40.9]}
5... Nf6 {[%clk 0:02:38.3]} 6. Qh4 {[%clk 0:02:41]} 6... Nbd7 {[%clk 0:02:30.7]}
7. Nf3 {[%clk 0:02:39]} 7... c5 {[%clk 0:02:26.6]} 8. dxc5 {[%clk 0:02:37.2]}
8... Bxc5 {[%clk 0:02:24.8]} 9. Bd3 {[%clk 0:02:31.9]} 9... b6 {[%clk 0:02:10]}
10. Bg5 {[%clk 0:02:31.5]} 10... Bb7 {[%clk 0:01:47.7]} 11. O-O-O {[%clk
0:02:31.5]} 11... Bc6 {[%clk 0:01:19.4]} 12. Rhe1 {[%clk 0:02:02.5]} 12... h6
{[%clk 0:01:14.6]} 13. Kb1 {[%clk 0:01:52]} 13... O-O {[%clk 0:00:48.2]} 14.
Bxh6 {[%clk 0:01:48.4]} 14... gxh6 {[%clk 0:00:48]} 15. Qxh6 {[%clk 0:01:49]}
15... Re8 {[%clk 0:00:32.1]} 16. Ng5 {[%clk 0:01:46.6]} 16... Nf8 {[%clk
0:00:21.6]} 17. Be4 {[%clk 0:01:42.4]} 17... Nxe4 {[%clk 0:00:04.9]} 18. Ncxe4
{[%clk 0:01:39.7]} 18... Bxe4 {[%clk 0:00:01.8]} 19. Nxe4 {[%clk 0:01:38.8]} 1-0

[Event "Late-Titled-Tuesday-Blitz-September-05-2023"]
[Site "Chess.com"]
[Date "2023.09.05"]
[Round "10"]
[White "tptagain"]
[Black "DeTimmerman"]
[Result "1-0"]
[WhiteElo "2972"]
[BlackElo "2679"]
[TimeControl "180+1"]
[EndTime "15:53:07 PDT"]
[Termination "tptagain won by resignation"]

1. Nf3 {[%clk 0:03:00.9]} 1... Nf6 {[%clk 0:03:00.4]} 2. b3 {[%clk 0:03:01.3]}
2... e6 {[%clk 0:03:01.3]} 3. Bb2 {[%clk 0:03:01.9]} 3... d5 {[%clk 0:03:02.2]}
4. c4 {[%clk 0:03:02.5]} 4... Be7 {[%clk 0:03:03.1]} 5. g3 {[%clk 0:03:02.7]}
5... O-O {[%clk 0:03:03.6]} 6. Bg2 {[%clk 0:03:03.3]} 6... b6 {[%clk 0:02:59.5]}
7. cxd5 {[%clk 0:03:03.8]} 7... Nxd5 {[%clk 0:02:55.8]} 8. O-O {[%clk
0:03:04.7]} 8... Bb7 {[%clk 0:02:56.4]} 9. d4 {[%clk 0:03:05.3]} 9... Nd7 {[%clk
0:02:56.3]} 10. Re1 {[%clk 0:03:05.6]} 10... c5 {[%clk 0:02:55.5]} 11. e4 {[%clk
0:03:05.5]} 11... N5f6 {[%clk 0:02:56.3]} 12. Nc3 {[%clk 0:03:06.1]} 12... cxd4
{[%clk 0:02:56.7]} 13. Nxd4 {[%clk 0:03:07]} 13... Nc5 {[%clk 0:02:50.4]} 14.
Qe2 {[%clk 0:02:28.6]} 14... Ba6 {[%clk 0:02:49.7]} 15. Ndb5 {[%clk 0:02:27.1]}
15... Qd3 {[%clk 0:02:32]} 16. Rad1 {[%clk 0:02:27]} 16... Qxe2 {[%clk
0:02:31.7]} 17. Rxe2 {[%clk 0:02:27.9]} 17... Rad8 {[%clk 0:02:24.9]} 18. Rxd8
{[%clk 0:02:01.5]} 18... Rxd8 {[%clk 0:02:25.5]} 19. e5 {[%clk 0:02:01.5]} 19...
Nd5 {[%clk 0:02:15]} 20. Bxd5 {[%clk 0:01:42]} 20... exd5 {[%clk 0:01:30.2]} 21.
Rd2 {[%clk 0:01:42]} 21... Ne4 {[%clk 0:01:30.7]} 22. Rxd5 {[%clk 0:01:23.4]}
22... Rxd5 {[%clk 0:01:29]} 23. Nxd5 {[%clk 0:01:24.3]} 23... Bxb5 {[%clk
0:01:19.6]} 24. Nxe7+ {[%clk 0:01:24.1]} 24... Kf8 {[%clk 0:01:20.1]} 25. Nc8
{[%clk 0:01:20.4]} 25... Bd7 {[%clk 0:01:18.2]} 26. Nxa7 {[%clk 0:01:20.5]}
26... b5 {[%clk 0:01:18.6]} 27. f3 {[%clk 0:01:17.2]} 27... Ng5 {[%clk
0:01:03.6]} 28. Kf2 {[%clk 0:01:15.5]} 28... Ke7 {[%clk 0:01:01.1]} 29. f4
{[%clk 0:01:06.3]} 29... Ne6 {[%clk 0:01:01.7]} 30. f5 {[%clk 0:01:04.1]} 30...
Nc5 {[%clk 0:01:02.1]} 31. Ba3 {[%clk 0:01:01.9]} 1-0

[Event "Late-Titled-Tuesday-Blitz-September-05-2023"]
[Site "Chess.com"]
[Date "2023.09.05"]
[Round "10"]
[White "Kosak12"]
[Black "Francisco_Ferrari"]
[Result "1-0"]
[WhiteElo "2786"]
[BlackElo "2169"]
[TimeControl "180+1"]
[EndTime "15:53:07 PDT"]
[Termination "Kosak12 won by checkmate"]

1. e4 {[%clk 0:02:49.6]} 1... c5 {[%clk 0:02:56.8]} 2. Nf3 {[%clk 0:02:49.1]}
2... d6 {[%clk 0:02:56.1]} 3. d4 {[%clk 0:02:49]} 3... cxd4 {[%clk 0:02:57]} 4.
Nxd4 {[%clk 0:02:49.6]} 4... Nf6 {[%clk 0:02:57.6]} 5. Nc3 {[%clk 0:02:50.2]}
5... a6 {[%clk 0:02:58.3]} 6. h4 {[%clk 0:02:49]} 6... e5 {[%clk 0:02:55]} 7.
Nb3 {[%clk 0:02:48.7]} 7... Be7 {[%clk 0:02:52.9]} 8. Bg5 {[%clk 0:02:47.3]}
8... Be6 {[%clk 0:02:53]} 9. Bxf6 {[%clk 0:02:47.4]} 9... Bxf6 {[%clk
0:02:52.4]} 10. g3 {[%clk 0:02:48]} 10... Nd7 {[%clk 0:02:50.2]} 11. Qxd6 {[%clk
0:02:47.5]} 11... Rc8 {[%clk 0:02:49.7]} 12. O-O-O {[%clk 0:02:46.5]} 12... Rxc3
{[%clk 0:02:45.4]} 13. bxc3 {[%clk 0:02:46.5]} 13... Qc8 {[%clk 0:02:28.9]} 14.
Bh3 {[%clk 0:02:41.7]} 14... Be7 {[%clk 0:02:24.5]} 15. Qd2 {[%clk 0:01:59]}
15... Bxh3 {[%clk 0:02:19.9]} 16. Rxh3 {[%clk 0:01:59.9]} 16... Nf6 {[%clk
0:02:18.4]} 17. g4 {[%clk 0:01:43.1]} 17... Qxg4 {[%clk 0:01:53.2]} 18. Rg3
{[%clk 0:01:37.9]} 18... Qxe4 {[%clk 0:01:42.5]} 19. Rxg7 {[%clk 0:01:36.2]}
19... Qc6 {[%clk 0:01:26.7]} 20. Kb2 {[%clk 0:01:31.3]} 20... Ne4 {[%clk
0:01:20.9]} 21. Qd5 {[%clk 0:00:57.7]} 21... Qxc3+ {[%clk 0:01:12.9]} 22. Kb1
{[%clk 0:00:57]} 22... Nd6 {[%clk 0:00:59]} 23. Rd3 {[%clk 0:00:50]} 23... Qe1+
{[%clk 0:00:56]} 24. Kb2 {[%clk 0:00:49.8]} 24... Nb5 {[%clk 0:00:49.1]} 25.
Qxf7# {[%clk 0:00:48.1]} 1-0

[Event "Late-Titled-Tuesday-Blitz-September-05-2023"]
[Site "Chess.com"]
[Date "2023.09.05"]
[Round "10"]
[White "SaqoChess_Twitch"]
[Black "DvaHrasta"]
[Result "1-0"]
[WhiteElo "2747"]
[BlackElo "2518"]
[TimeControl "180+1"]
[EndTime "15:53:16 PDT"]
[Termination "SaqoChess_Twitch won on time"]

1. d4 {[%clk 0:03:00.9]} 1... Nf6 {[%clk 0:02:59.3]} 2. c4 {[%clk 0:03:01.4]}
2... e6 {[%clk 0:02:59.6]} 3. Nc3 {[%clk 0:03:01.6]} 3... Bb4 {[%clk 0:02:59.1]}
4. e3 {[%clk 0:03:02.2]} 4... O-O {[%clk 0:02:58.8]} 5. a3 {[%clk 0:03:02.1]}
5... Bxc3+ {[%clk 0:02:57.4]} 6. bxc3 {[%clk 0:03:03]} 6... b6 {[%clk
0:02:55.1]} 7. Bd3 {[%clk 0:03:02.7]} 7... Bb7 {[%clk 0:02:54.4]} 8. f3 {[%clk
0:03:02.9]} 8... d5 {[%clk 0:02:53.3]} 9. cxd5 {[%clk 0:03:02]} 9... exd5 {[%clk
0:02:53.4]} 10. Ne2 {[%clk 0:03:02.9]} 10... Re8 {[%clk 0:02:53]} 11. O-O {[%clk
0:03:03.8]} 11... c5 {[%clk 0:02:52.9]} 12. Ra2 {[%clk 0:03:02.9]} 12... Nc6
{[%clk 0:02:45.7]} 13. g4 {[%clk 0:03:01.4]} 13... Rc8 {[%clk 0:02:42.3]} 14.
Ng3 {[%clk 0:02:59.6]} 14... Na5 {[%clk 0:02:39.2]} 15. Rg2 {[%clk 0:02:58.3]}
15... Nc4 {[%clk 0:02:37]} 16. g5 {[%clk 0:02:50.6]} 16... Nd7 {[%clk
0:02:32.6]} 17. Nf5 {[%clk 0:02:46.3]} 17... Nf8 {[%clk 0:02:26.2]} 18. e4
{[%clk 0:02:43.8]} 18... cxd4 {[%clk 0:02:23.4]} 19. cxd4 {[%clk 0:02:38.5]}
19... dxe4 {[%clk 0:02:21.2]} 20. fxe4 {[%clk 0:02:38.5]} 20... Bxe4 {[%clk
0:02:20]} 21. Bxe4 {[%clk 0:02:38.6]} 21... Rxe4 {[%clk 0:02:20]} 22. Qf3 {[%clk
0:02:39.1]} 22... Re6 {[%clk 0:01:51.6]} 23. Nh6+ {[%clk 0:02:33.9]} 23... Rxh6
{[%clk 0:01:26.3]} 24. Qxf7+ {[%clk 0:02:31.2]} 24... Kh8 {[%clk 0:01:25.1]} 25.
gxh6 {[%clk 0:02:28.2]} 25... Qxd4+ {[%clk 0:01:19.1]} 26. Kh1 {[%clk
0:02:28.1]} 26... Ng6 {[%clk 0:01:16.3]} 27. Bg5 {[%clk 0:02:02.8]} 27... Nd6
{[%clk 0:00:58]} 28. Qd7 {[%clk 0:01:46.7]} 28... Rg8 {[%clk 0:00:45]} 29. hxg7+
{[%clk 0:01:45.5]} 29... Rxg7 {[%clk 0:00:40.3]} 30. Qd8+ {[%clk 0:01:41.5]} 1-0

[Event "Late-Titled-Tuesday-Blitz-September-05-2023"]
[Site "Chess.com"]
[Date "2023.09.05"]
[Round "10"]
[White "BeautiFullMindChess"]
[Black "Bobbybunny"]
[Result "0-1"]
[WhiteElo "2333"]
[BlackElo "2233"]
[TimeControl "180+1"]
[EndTime "15:53:36 PDT"]
[Termination "Bobbybunny won by resignation"]

1. e4 {[%clk 0:03:00.9]} 1... c5 {[%clk 0:02:59.5]} 2. Nf3 {[%clk 0:03:00]} 2...
g6 {[%clk 0:02:59.1]} 3. d4 {[%clk 0:03:00.9]} 3... cxd4 {[%clk 0:02:59]} 4.
Nxd4 {[%clk 0:03:01.8]} 4... Nf6 {[%clk 0:02:58.6]} 5. Nc3 {[%clk 0:03:01.8]}
5... d6 {[%clk 0:02:58.9]} 6. Be3 {[%clk 0:03:01.6]} 6... Bg7 {[%clk 0:02:58.8]}
7. f3 {[%clk 0:03:01.6]} 7... a6 {[%clk 0:02:58.8]} 8. Qd2 {[%clk 0:03:02.5]}
8... h5 {[%clk 0:02:58.1]} 9. O-O-O {[%clk 0:03:02.2]} 9... b5 {[%clk 0:02:58]}
10. Kb1 {[%clk 0:03:01.4]} 10... Bb7 {[%clk 0:02:57.5]} 11. a3 {[%clk
0:03:00.4]} 11... Nbd7 {[%clk 0:02:56.6]} 12. Bg5 {[%clk 0:03:00.6]} 12... Rb8
{[%clk 0:02:52.1]} 13. g3 {[%clk 0:02:45.8]} 13... Qc7 {[%clk 0:02:46.4]} 14.
Bh3 {[%clk 0:02:45.5]} 14... Ne5 {[%clk 0:02:41.9]} 15. Rhe1 {[%clk 0:02:39.7]}
15... Nc4 {[%clk 0:02:40.7]} 16. Qd3 {[%clk 0:02:34.6]} 16... O-O {[%clk
0:02:37.1]} 17. Nd5 {[%clk 0:02:04.5]} 17... Bxd5 {[%clk 0:02:24.5]} 18. exd5
{[%clk 0:02:05.4]} 18... b4 {[%clk 0:02:20.4]} 19. Nc6 {[%clk 0:01:58.8]} 19...
bxa3 {[%clk 0:02:13.4]} 20. Qxc4 {[%clk 0:01:55.7]} 20... Rxb2+ {[%clk
0:02:11.3]} 21. Kc1 {[%clk 0:01:54.5]} 21... Nxd5 {[%clk 0:01:59.2]} 22. Rxd5
{[%clk 0:01:36.7]} 22... a2 {[%clk 0:01:52.2]} 23. Qa4 {[%clk 0:01:04.2]} 23...
a1=Q+ {[%clk 0:01:16.2]} 24. Qxa1 {[%clk 0:00:58.9]} 24... Rxc2+ {[%clk
0:01:10.4]} 25. Kxc2 {[%clk 0:00:14.9]} 25... Qxc6+ {[%clk 0:01:08.7]} 26. Kb1
{[%clk 0:00:14.2]} 26... Rb8+ {[%clk 0:01:02.2]} 0-1

[Event "Late-Titled-Tuesday-Blitz-September-05-2023"]
[Site "Chess.com"]
[Date "2023.09.05"]
[Round "10"]
[White "Akhayan"]
[Black "KejJaj"]
[Result "1-0"]
[WhiteElo "2353"]
[BlackElo "2219"]
[TimeControl "180+1"]
[EndTime "15:53:38 PDT"]
[Termination "Akhayan won by resignation"]

1. e4 {[%clk 0:03:00.9]} 1... c5 {[%clk 0:02:59.6]} 2. Nf3 {[%clk 0:02:59.7]}
2... d6 {[%clk 0:03:00.1]} 3. d4 {[%clk 0:02:59.8]} 3... cxd4 {[%clk 0:03:01]}
4. Nxd4 {[%clk 0:03:00.1]} 4... Nf6 {[%clk 0:03:01.5]} 5. Nc3 {[%clk 0:03:00.7]}
5... g6 {[%clk 0:03:02.1]} 6. f4 {[%clk 0:02:59.4]} 6... Nc6 {[%clk 0:03:00]} 7.
Be3 {[%clk 0:02:48.7]} 7... Bg7 {[%clk 0:02:46.8]} 8. Nb3 {[%clk 0:02:38]} 8...
Ng4 {[%clk 0:02:44.1]} 9. Bg1 {[%clk 0:02:32.4]} 9... O-O {[%clk 0:02:42.7]} 10.
Be2 {[%clk 0:02:32.1]} 10... Nf6 {[%clk 0:02:40.9]} 11. Be3 {[%clk 0:02:27.7]}
11... Bd7 {[%clk 0:02:32.2]} 12. O-O {[%clk 0:02:27.4]} 12... Rc8 {[%clk
0:02:29.9]} 13. Kh1 {[%clk 0:02:27.9]} 13... a6 {[%clk 0:02:20.4]} 14. Qd2
{[%clk 0:02:27.8]} 14... Re8 {[%clk 0:02:12.9]} 15. Rad1 {[%clk 0:02:27.3]}
15... b5 {[%clk 0:02:10.7]} 16. e5 {[%clk 0:02:20.1]} 16... dxe5 {[%clk
0:02:08.6]} 17. fxe5 {[%clk 0:02:19.8]} 17... Nxe5 {[%clk 0:02:06.6]} 18. Bf4
{[%clk 0:02:15.8]} 18... Nc4 {[%clk 0:02:01.3]} 19. Bxc4 {[%clk 0:02:15.3]}
19... Rxc4 {[%clk 0:02:00.1]} 20. Be5 {[%clk 0:02:08.2]} 20... b4 {[%clk
0:00:38.8]} 21. Bxf6 {[%clk 0:01:52.4]} 21... bxc3 {[%clk 0:00:31.9]} 22. Bxc3
{[%clk 0:01:48.5]} 22... Bxc3 {[%clk 0:00:26.5]} 23. bxc3 {[%clk 0:01:48.8]}
23... Rc7 {[%clk 0:00:25.5]} 24. Qd5 {[%clk 0:01:24.2]} 24... Qc8 {[%clk
0:00:26]} 25. Qxf7+ {[%clk 0:01:19.3]} 25... Kh8 {[%clk 0:00:26.7]} 26. Qf4
{[%clk 0:01:10.2]} 26... Rxc3 {[%clk 0:00:25.4]} 27. Qd4+ {[%clk 0:01:07.3]}
27... Kg8 {[%clk 0:00:23.7]} 28. Qxd7 {[%clk 0:01:05.9]} 28... Qb8 {[%clk
0:00:18.8]} 29. Qd5+ {[%clk 0:01:04.3]} 29... Kh8 {[%clk 0:00:17.8]} 30. Qd4+
{[%clk 0:01:03.1]} 30... Kg8 {[%clk 0:00:18.4]} 31. Qxc3 {[%clk 0:01:02.5]} 1-0

[Event "Late-Titled-Tuesday-Blitz-September-05-2023"]
[Site "Chess.com"]
[Date "2023.09.05"]
[Round "10"]
[White "Jarming"]
[Black "FaustinoOro"]
[Result "0-1"]
[WhiteElo "2653"]
[BlackElo "2852"]
[TimeControl "180+1"]
[EndTime "15:53:46 PDT"]
[Termination "FaustinoOro won by resignation"]

1. c4 {[%clk 0:03:00.9]} 1... e5 {[%clk 0:02:58.5]} 2. g3 {[%clk 0:03:01.1]}
2... Nf6 {[%clk 0:02:57.9]} 3. Bg2 {[%clk 0:03:02]} 3... Nc6 {[%clk 0:02:55.8]}
4. Nc3 {[%clk 0:03:02]} 4... Bb4 {[%clk 0:02:54.9]} 5. d3 {[%clk 0:02:54.1]}
5... O-O {[%clk 0:02:53.8]} 6. Bd2 {[%clk 0:02:53.9]} 6... Re8 {[%clk
0:02:52.2]} 7. e3 {[%clk 0:02:54.2]} 7... Bxc3 {[%clk 0:02:50.8]} 8. Bxc3 {[%clk
0:02:54.2]} 8... d5 {[%clk 0:02:51.4]} 9. cxd5 {[%clk 0:02:55.1]} 9... Nxd5
{[%clk 0:02:52.2]} 10. a3 {[%clk 0:02:53.1]} 10... Be6 {[%clk 0:02:45.8]} 11.
Ne2 {[%clk 0:02:51]} 11... Qd7 {[%clk 0:02:45.5]} 12. Rc1 {[%clk 0:02:49.5]}
12... Rad8 {[%clk 0:02:45.2]} 13. O-O {[%clk 0:02:49.6]} 13... Bh3 {[%clk
0:02:44.9]} 14. Qa4 {[%clk 0:02:46.8]} 14... Bxg2 {[%clk 0:02:43.3]} 15. Kxg2
{[%clk 0:02:47.2]} 15... Nb6 {[%clk 0:02:44]} 16. Qb5 {[%clk 0:02:34.6]} 16...
a6 {[%clk 0:02:39.7]} 17. Qb3 {[%clk 0:02:31.8]} 17... Qxd3 {[%clk 0:02:39.4]}
18. Rfe1 {[%clk 0:02:26.1]} 18... h5 {[%clk 0:02:20.5]} 19. h3 {[%clk
0:02:21.7]} 19... Qe4+ {[%clk 0:02:18.2]} 20. Kg1 {[%clk 0:02:16.8]} 20... h4
{[%clk 0:02:15.1]} 21. Rcd1 {[%clk 0:02:03]} 21... Qf3 {[%clk 0:02:04]} 22. a4
{[%clk 0:01:55.5]} 22... Rxd1 {[%clk 0:01:57.1]} 23. Qxd1 {[%clk 0:01:56.4]}
23... Nd5 {[%clk 0:01:38.5]} 24. Qb3 {[%clk 0:01:11.5]} 24... Re6 {[%clk
0:00:59.6]} 25. e4 {[%clk 0:00:46.3]} 25... hxg3 {[%clk 0:00:47.2]} 26. Nxg3
{[%clk 0:00:41.1]} 26... Nf4 {[%clk 0:00:46.8]} 0-1

[Event "Late-Titled-Tuesday-Blitz-September-05-2023"]
[Site "Chess.com"]
[Date "2023.09.05"]
[Round "10"]
[White "sergoy"]
[Black "Rutricks"]
[Result "0-1"]
[WhiteElo "2902"]
[BlackElo "2709"]
[TimeControl "180+1"]
[EndTime "15:53:47 PDT"]
[Termination "Rutricks won by resignation"]

1. d4 {[%clk 0:03:00.1]} 1... g6 {[%clk 0:03:00]} 2. c4 {[%clk 0:03:00.9]} 2...
Bg7 {[%clk 0:03:00.5]} 3. Nc3 {[%clk 0:03:01.7]} 3... d6 {[%clk 0:03:01.1]} 4.
Nf3 {[%clk 0:03:01.7]} 4... Nd7 {[%clk 0:03:01.8]} 5. e4 {[%clk 0:03:02.2]} 5...
e5 {[%clk 0:03:02.4]} 6. Bg5 {[%clk 0:03:02.9]} 6... Ngf6 {[%clk 0:03:02.7]} 7.
d5 {[%clk 0:02:48.5]} 7... a5 {[%clk 0:03:02]} 8. Bd3 {[%clk 0:02:46.4]} 8... h6
{[%clk 0:03:02.3]} 9. Bh4 {[%clk 0:02:46.5]} 9... g5 {[%clk 0:03:01.9]} 10. Bg3
{[%clk 0:02:46.9]} 10... Nc5 {[%clk 0:03:02.3]} 11. Bc2 {[%clk 0:02:46.9]} 11...
Nh5 {[%clk 0:03:02.1]} 12. O-O {[%clk 0:02:41]} 12... Nf4 {[%clk 0:02:56.2]} 13.
a3 {[%clk 0:02:40.6]} 13... Bd7 {[%clk 0:02:52.2]} 14. b4 {[%clk 0:02:40.1]}
14... Na6 {[%clk 0:02:52.6]} 15. Rb1 {[%clk 0:02:38.6]} 15... h5 {[%clk
0:02:38.2]} 16. h4 {[%clk 0:02:36.8]} 16... g4 {[%clk 0:02:16.7]} 17. Nd2 {[%clk
0:02:25.8]} 17... Bf6 {[%clk 0:01:54.6]} 18. c5 {[%clk 0:02:25.2]} 18... axb4
{[%clk 0:01:29.5]} 19. axb4 {[%clk 0:02:23.6]} 19... dxc5 {[%clk 0:01:24.5]} 20.
bxc5 {[%clk 0:02:19.5]} 20... Nxc5 {[%clk 0:01:25.4]} 21. Nc4 {[%clk 0:02:19.8]}
21... Ng6 {[%clk 0:01:15.3]} 22. Qd2 {[%clk 0:02:04.1]} 22... O-O {[%clk
0:01:11.6]} 23. Qh6 {[%clk 0:02:02.3]} 23... Bxh4 {[%clk 0:01:02.6]} 24. Qxh5
{[%clk 0:01:59.6]} 24... Kg7 {[%clk 0:00:42.3]} 25. Bxh4 {[%clk 0:01:55.4]}
25... Rh8 {[%clk 0:00:30.2]} 26. Bxd8 {[%clk 0:01:51.8]} 26... Rxh5 {[%clk
0:00:30.3]} 27. Bxc7 {[%clk 0:01:50.8]} 27... Rah8 {[%clk 0:00:28.5]} 28. f4
{[%clk 0:01:02.7]} 28... g3 {[%clk 0:00:28]} 29. Bxe5+ {[%clk 0:00:43.5]} 29...
Nxe5 {[%clk 0:00:27.1]} 0-1

[Event "Late-Titled-Tuesday-Blitz-September-05-2023"]
[Site "Chess.com"]
[Date "2023.09.05"]
[Round "10"]
[White "copanchess"]
[Black "NotFischer"]
[Result "0-1"]
[WhiteElo "2178"]
[BlackElo "2288"]
[TimeControl "180+1"]
[EndTime "15:53:49 PDT"]
[Termination "NotFischer won by resignation"]

1. e4 {[%clk 0:03:00.9]} 1... d5 {[%clk 0:02:59.6]} 2. exd5 {[%clk 0:02:59.3]}
2... Qxd5 {[%clk 0:03:00.5]} 3. Nc3 {[%clk 0:02:58.9]} 3... Qd6 {[%clk
0:03:00.4]} 4. Nf3 {[%clk 0:02:57.7]} 4... Nf6 {[%clk 0:03:00.5]} 5. Nb5 {[%clk
0:02:54.7]} 5... Qb6 {[%clk 0:02:57.5]} 6. c4 {[%clk 0:02:53.2]} 6... c6 {[%clk
0:02:55.7]} 7. Nc3 {[%clk 0:02:51.5]} 7... Bg4 {[%clk 0:02:51.4]} 8. Be2 {[%clk
0:02:42.9]} 8... Nbd7 {[%clk 0:02:47.6]} 9. d4 {[%clk 0:02:43.2]} 9... e6 {[%clk
0:02:47]} 10. O-O {[%clk 0:02:42.7]} 10... Be7 {[%clk 0:02:35.8]} 11. h3 {[%clk
0:02:30.4]} 11... Bh5 {[%clk 0:02:35.5]} 12. Be3 {[%clk 0:02:24.2]} 12... Qxb2
{[%clk 0:02:19.2]} 13. Na4 {[%clk 0:02:15.8]} 13... Qa3 {[%clk 0:02:15.7]} 14.
Rb1 {[%clk 0:01:51.2]} 14... O-O {[%clk 0:01:53]} 15. Rxb7 {[%clk 0:01:48.1]}
15... Rfd8 {[%clk 0:01:45.5]} 16. Nc5 {[%clk 0:01:34.5]} 16... Bxc5 {[%clk
0:01:35.8]} 17. dxc5 {[%clk 0:01:30.8]} 17... Nxc5 {[%clk 0:01:34]} 18. Bxc5
{[%clk 0:01:29.4]} 18... Qxc5 {[%clk 0:01:33.3]} 19. Qb3 {[%clk 0:01:28]} 19...
Ne4 {[%clk 0:01:26.8]} 20. Qb2 {[%clk 0:01:10.8]} 20... Bxf3 {[%clk 0:01:20.9]}
21. Bxf3 {[%clk 0:01:06.9]} 21... Nd2 {[%clk 0:01:20.7]} 22. Bh5 {[%clk
0:00:55.1]} 22... g6 {[%clk 0:01:12.3]} 23. Qf6 {[%clk 0:00:51.5]} 23... Rf8
{[%clk 0:01:01.6]} 24. Bxg6 {[%clk 0:00:40.5]} 24... hxg6 {[%clk 0:00:59.1]} 25.
Rd1 {[%clk 0:00:38]} 25... Ne4 {[%clk 0:00:53.6]} 26. Qh4 {[%clk 0:00:36.2]}
26... Qh5 {[%clk 0:00:36.7]} 27. Qxh5 {[%clk 0:00:29]} 27... gxh5 {[%clk
0:00:37.3]} 28. Rdd7 {[%clk 0:00:27.8]} 28... Nc5 {[%clk 0:00:35.2]} 0-1